fUSD/lending_fUSD_20250521
["ID","MTS","AMOUNT","RATE_DAILY","PERIOD"]
[361845772,1747836633053,-5897.90548521,0.00032765,2]
[361845773,1747836633063,-166.00787717,0.00032766,15]
[361845774,1747836633074,-273.44989687,0.00032776,2]
[361845775,1747836633084,-169.81421377,0.00032776,4]
[361845776,1747836633094,-305.88,0.00032788,2]
[361845777,1747836633104,-305.24,0.00032795,2]
[361845778,1747836633114,-3900.0,0.000328,11]
[361845779,1747836633126,-35597.8073307,0.00032855,2]
[361845780,1747836633135,-53396.7109961,0.00032855,2]
[361845781,1747836633145,-88994.5183268,0.0003286,2]
[361845782,1747836633155,-500.0,0.00032864,2]
[361845783,1747836633165,-500.0,0.00032864,2]
[361845784,1747836633176,-500.0,0.00032864,2]
[361845785,1747836633186,-500.0,0.00032864,2]
[361845786,1747836633196,-500.0,0.00032864,2]
[361845787,1747836633206,-500.0,0.00032864,2]
[361845788,1747836633216,-500.0,0.00032864,2]
[361845789,1747836633226,-500.0,0.00032864,2]
[361845790,1747836633236,-489.28048458,0.00032864,2]
[361845791,1747836633246,-500.0,0.00032864,2]
[361845792,1747836633256,-359.95034244,0.00032864,2]
[361845793,1747836633265,-500.0,0.00032864,2]
[361845794,1747836633275,-500.0,0.00032864,2]
[361845795,1747836633285,-500.0,0.00032864,2]
[361845796,1747836633295,-500.0,0.00032864,2]
[361845797,1747836633305,-500.0,0.00032864,2]
[361845798,1747836633315,-500.0,0.00032864,2]
[361845799,1747836633325,-228020.79462797,0.00032865,5]
[361845800,1747836633335,-215.0738,0.00032865,2]
[361845801,1747836633346,-1243.57659104,0.00032865,2]
[361845802,1747836633356,-156.587,0.00032865,2]
[361845803,1747836633367,-71195.6146614,0.00032866,2]
[361845804,1747836633378,-207.03160748,0.00032866,2]
[361845805,1747836633387,-4187.622435,0.0003287,2]
[361845806,1747836633398,-176966.8147608,0.0003287,2]
[361845807,1747836633408,-500.0,0.00032873,5]
[361845808,1747836633417,-500.0,0.00032873,5]
[361845809,1747836633428,-500.0,0.00032873,5]
[361845810,1747836633437,-500.0,0.00032873,5]
[361845811,1747836633447,-224.86169537,0.00032875,2]
[361845812,1747836633456,-165.82832383,0.00032876,7]
[361845813,1747836633466,-436.0,0.00032876,5]
[361845814,1747836633476,-168.102172,0.00032876,5]
[361845815,1747836633486,-151.448734,0.00032876,5]
[361845816,1747836633496,-287.52662,0.00032876,5]
[361845817,1747836633506,-320.317583,0.00032876,5]
[361845818,1747836633516,-764.936498,0.00032876,5]
[361845819,1747836633526,-321.15265856,0.00032876,5]
[361845820,1747836633535,-420.0,0.00032876,5]
[361845821,1747836633545,-492.489503,0.00032876,5]
[361845822,1747836633555,-447.50483747,0.00032876,5]
[361845823,1747836633564,-151.0,0.00032876,7]
[361845824,1747836633575,-426.53,0.00032876,5]
[361845825,1747836633584,-420.0,0.00032876,5]
[361845826,1747836633594,-200.0,0.00032876,2]
[361845827,1747836633604,-420.0,0.00032876,5]
[361845828,1747836633613,-420.0,0.00032876,5]
[361845829,1747836633625,-420.0,0.00032876,5]
[361845830,1747836633634,-420.0,0.00032876,5]
[361845831,1747836633644,-471.99,0.00032876,5]
[361845832,1747836633654,-420.0,0.00032876,5]
[361845833,1747836633664,-420.0,0.00032876,5]
[361845834,1747836633674,-420.0,0.00032876,5]
[361845835,1747836633684,-420.0,0.00032876,5]
[361845836,1747836633698,-739.24,0.00032876,5]
[361845837,1747836633708,-163.87,0.00032876,5]
[361845838,1747836633718,-420.0,0.00032876,5]
[361845839,1747836633727,-420.0,0.00032876,5]
[361845840,1747836633738,-352.51902671,0.00032876,5]
[361845841,1747836633748,-420.0,0.00032876,5]
[361845842,1747836633757,-420.0,0.00032876,5]
[361845843,1747836633768,-494.18,0.00032876,5]
[361845844,1747836633778,-420.0,0.00032876,5]
[361845845,1747836633788,-462.65,0.00032876,5]
[361845846,1747836633798,-420.0,0.00032876,5]
[361845847,1747836633808,-420.0,0.00032876,5]
[361845848,1747836633818,-482.61,0.00032876,5]
[361845849,1747836633828,-400.0,0.00032876,5]
[361845850,1747836633838,-400.0,0.00032876,5]
[361845851,1747836633847,-428.5,0.00032876,5]
[361845852,1747836633857,-420.0,0.00032876,5]
[361845853,1747836633868,-420.0,0.00032876,5]
[361845854,1747836633878,-420.0,0.00032876,5]
[361845855,1747836633887,-420.0,0.00032876,5]
[361845856,1747836633897,-420.0,0.00032876,5]
[361845857,1747836633907,-420.0,0.00032876,5]
[361845858,1747836633917,-500.0,0.00032876,5]
[361845859,1747836633926,-420.0,0.00032876,5]
[361845860,1747836633936,-500.0,0.00032876,5]
[361845861,1747836633945,-500.0,0.00032876,5]
[361845862,1747836633955,-500.0,0.00032876,5]
[361845863,1747836633965,-500.0,0.00032876,5]
[361845864,1747836633975,-500.0,0.00032876,5]
[361845865,1747836633984,-527.26,0.00032876,5]
[361845866,1747836633994,-635.46,0.00032876,5]
[361845867,1747836634004,-420.0,0.00032876,5]
[361845868,1747836634013,-384.64456124,0.00032876,5]
[361845869,1747836634023,-449.59,0.00032876,5]
[361845870,1747836634032,-420.0,0.00032876,5]
[361845871,1747836634042,-590.14,0.00032876,5]
[361845872,1747836634051,-420.0,0.00032876,5]
[361845873,1747836634062,-420.0,0.00032876,5]
[361845874,1747836634072,-420.0,0.00032876,5]
[361845875,1747836634081,-420.0,0.00032876,5]
[361845876,1747836634091,-420.0,0.00032876,5]
[361845877,1747836634101,-420.0,0.00032876,5]
[361845878,1747836634113,-420.0,0.00032876,5]
[361845879,1747836634125,-500.0,0.00032876,5]
[361845880,1747836634135,-400.0,0.00032876,5]
[361845881,1747836634145,-420.0,0.00032876,5]
[361845882,1747836634155,-205.6193158,0.00032876,5]
[361845883,1747836634165,-272.03858536,0.00032876,5]
[361845884,1747836634175,-164.827931,0.00032876,7]
[361845885,1747836634185,-151.0,0.00032876,7]
[361845886,1747836634195,-420.0,0.00032876,5]
[361845887,1747836634205,-420.0,0.00032876,5]
[361845888,1747836634215,-420.0,0.00032876,5]
[361845889,1747836634225,-507.63,0.00032876,5]
[361845890,1747836634236,-151.0,0.00032876,7]
[361845891,1747836634245,-959.81,0.00032876,5]
[361845892,1747836634255,-151.0,0.00032876,7]
[361845893,1747836634265,-420.0,0.00032876,5]
[361845894,1747836634275,-462.96,0.00032876,5]
[361845895,1747836634284,-400.0,0.00032876,5]
[361845896,1747836634294,-856.1,0.00032876,5]
[361845897,1747836634303,-400.0,0.00032876,5]
[361845898,1747836634313,-494.91,0.00032876,5]
[361845899,1747836634322,-420.0,0.00032876,5]
[361845900,1747836634336,-420.0,0.00032876,5]
[361845901,1747836634352,-420.0,0.00032876,5]
[361845902,1747836634366,-420.0,0.00032876,5]
[361845903,1747836634380,-420.0,0.00032876,5]
[361845904,1747836634392,-825.48,0.00032876,5]
[361845905,1747836634404,-400.0,0.00032876,5]
[361845906,1747836634418,-400.0,0.00032876,5]
[361845907,1747836634432,-786.83,0.00032876,5]
[361845908,1747836634445,-400.10176362,0.00032876,5]
[361845909,1747836634459,-420.0,0.00032876,5]
[361845910,1747836634473,-420.0,0.00032876,5]
[361845911,1747836634488,-400.0,0.00032876,5]
[361845912,1747836634500,-314.38620212,0.00032876,5]
[361845913,1747836634513,-420.0,0.00032876,5]
[361845914,1747836634524,-151.0,0.00032876,7]
[361845915,1747836634535,-420.0,0.00032876,5]
[361845916,1747836634549,-225.321766,0.00032876,7]
[361845917,1747836634562,-400.0,0.00032876,5]
[361845918,1747836634576,-420.0,0.00032876,5]
[361845919,1747836634590,-396.5,0.00032876,5]
[361845920,1747836634603,-151.0,0.00032876,7]
[361845921,1747836634617,-420.0,0.00032876,5]
[361845922,1747836634631,-151.0,0.00032876,7]
[361845923,1747836634645,-151.0,0.00032876,7]
[361845924,1747836634657,-151.0,0.00032876,7]
[361845925,1747836634670,-151.0,0.00032876,7]
[361845926,1747836634686,-151.0,0.00032876,7]
[361845927,1747836634703,-420.0,0.00032876,5]
[361845928,1747836634716,-242.725336,0.00032876,7]
[361845929,1747836634729,-420.0,0.00032876,5]
[361845930,1747836634742,-420.0,0.00032876,5]
[361845931,1747836634755,-420.0,0.00032876,5]
[361845932,1747836634769,-1033.08,0.00032876,5]
[361845933,1747836634783,-151.0,0.00032876,7]
[361845934,1747836634797,-151.0,0.00032876,7]
[361845935,1747836634810,-151.0,0.00032876,7]
[361845936,1747836634838,-223.3097,0.00032876,7]
[361845937,1747836634856,-420.0,0.00032876,5]
[361845938,1747836634869,-420.0,0.00032876,5]
[361845939,1747836634882,-420.0,0.00032876,5]
[361845940,1747836634895,-151.0,0.00032876,7]
[361845941,1747836634912,-282.29,0.00032876,5]
[361845942,1747836634932,-496.55,0.00032876,5]
[361845943,1747836634945,-151.0,0.00032876,7]
[361845944,1747836634957,-151.0,0.00032876,7]
[361845945,1747836634968,-153.246101,0.00032876,7]
[361845946,1747836634981,-151.0,0.00032876,7]
[361845947,1747836634996,-151.0,0.00032876,7]
[361845948,1747836635014,-151.0,0.00032876,7]
[361845949,1747836635032,-420.0,0.00032876,5]
[361845950,1747836635044,-420.0,0.00032876,5]
[361845951,1747836635056,-420.0,0.00032876,5]
[361845952,1747836635068,-347.37783078,0.00032876,5]
[361845953,1747836635080,-420.0,0.00032876,5]
[361845954,1747836635093,-420.0,0.00032876,5]
[361845955,1747836635107,-420.0,0.00032876,5]
[361845956,1747836635122,-420.0,0.00032876,5]
[361845957,1747836635134,-420.0,0.00032876,5]
[361845958,1747836635148,-638.79,0.00032876,5]
[361845959,1747836635160,-420.0,0.00032876,5]
[361845960,1747836635173,-420.0,0.00032876,5]
[361845961,1747836635186,-420.0,0.00032876,5]
[361845962,1747836635200,-718.73,0.00032876,5]
[361845963,1747836635225,-151.0,0.00032876,7]
[361845964,1747836635240,-151.0,0.00032876,7]
[361845965,1747836635257,-151.0,0.00032876,7]
[361845966,1747836635273,-420.0,0.00032876,5]
[361845967,1747836635288,-2267.71,0.00032876,5]
[361845968,1747836635303,-420.0,0.00032876,5]
[361845969,1747836635317,-400.0,0.00032876,5]
[361845970,1747836635331,-420.0,0.00032876,5]
[361845971,1747836635345,-156.01,0.00032876,5]
[361845972,1747836635359,-420.0,0.00032876,5]
[361845973,1747836635373,-420.0,0.00032876,5]
[361845974,1747836635387,-420.0,0.00032876,5]
[361845975,1747836635400,-420.0,0.00032876,5]
[361845976,1747836635413,-1000.27,0.00032876,5]
[361845977,1747836635426,-400.0,0.00032876,5]
[361845978,1747836635439,-151.0,0.00032876,7]
[361845979,1747836635453,-151.0,0.00032876,7]
[361845980,1747836635467,-420.0,0.00032876,5]
[361845981,1747836635480,-151.0,0.00032876,7]
[361845982,1747836635493,-1786.26,0.00032876,5]
[361845983,1747836635507,-211.7,0.00032876,5]
[361845984,1747836635521,-3806.3,0.00032876,5]
[361845985,1747836635535,-420.0,0.00032876,5]
[361845986,1747836635549,-402.07522111,0.00032876,5]
[361845987,1747836635561,-647.78,0.00032876,5]
[361845988,1747836635573,-698.57,0.00032876,5]
[361845989,1747836635585,-370.1201983,0.00032876,5]
[361845990,1747836635599,-679.46,0.00032876,5]
[361845991,1747836635611,-400.0,0.00032876,5]
[361845992,1747836635631,-664.28,0.00032876,5]
[361845993,1747836635644,-294.86,0.00032876,5]
[361845994,1747836635658,-420.0,0.00032876,5]
[361845995,1747836635672,-387.1666385,0.00032876,5]
[361845996,1747836635689,-420.0,0.00032876,5]
[361845997,1747836635702,-420.0,0.00032876,5]
[361845998,1747836635715,-461.72,0.00032876,5]
[361845999,1747836635730,-669.62,0.00032876,5]
[361846000,1747836635743,-420.0,0.00032876,5]
[361846001,1747836635756,-420.0,0.00032876,5]
[361846002,1747836635770,-420.0,0.00032876,5]
[361846003,1747836635783,-538.6792421,0.00032876,5]
[361846004,1747836635796,-420.0,0.00032876,5]
[361846005,1747836635810,-789.03,0.00032876,5]
[361846006,1747836635823,-2851.39,0.00032876,5]
[361846007,1747836635836,-420.0,0.00032876,5]
[361846008,1747836635849,-2183.74,0.00032876,5]
[361846009,1747836635861,-1052.79,0.00032876,5]
[361846010,1747836635876,-448.0,0.00032876,5]
[361846011,1747836635889,-420.0,0.00032876,5]
[361846012,1747836635902,-420.0,0.00032876,5]
[361846013,1747836635916,-151.0,0.00032876,7]
[361846014,1747836635929,-420.0,0.00032876,5]
[361846015,1747836635943,-420.0,0.00032876,5]
[361846016,1747836635955,-420.0,0.00032876,5]
[361846017,1747836635968,-499.68,0.00032876,5]
[361846018,1747836635981,-420.0,0.00032876,5]
[361846019,1747836635994,-420.0,0.00032876,5]
[361846020,1747836636007,-1301.47,0.00032876,5]
[361846021,1747836636020,-947.9,0.00032876,5]
[361846022,1747836636032,-420.0,0.00032876,5]
[361846023,1747836636049,-829.66,0.00032876,5]
[361846024,1747836636064,-305.27379913,0.00032876,5]
[361846025,1747836636076,-290.481793,0.00032876,5]
[361846026,1747836636090,-2151.33,0.00032876,5]
[361846027,1747836636103,-1015.15,0.00032876,5]
[361846028,1747836636116,-420.0,0.00032876,5]
[361846029,1747836636132,-1572.65,0.00032876,5]
[361846030,1747836636145,-1650.25,0.00032876,5]
[361846031,1747836636158,-151.0,0.00032876,7]
[361846032,1747836636171,-151.0,0.00032876,7]
[361846033,1747836636184,-151.0,0.00032876,7]
[361846034,1747836636196,-792.05,0.00032876,5]
[361846035,1747836636209,-420.0,0.00032876,5]
[361846036,1747836636221,-420.0,0.00032876,5]
[361846037,1747836636232,-420.0,0.00032876,5]
[361846038,1747836636245,-240.0,0.00032876,5]
[361846039,1747836636257,-420.0,0.00032876,5]
[361846040,1747836636271,-420.0,0.00032876,5]
[361846041,1747836636285,-420.0,0.00032876,5]
[361846042,1747836636298,-420.0,0.00032876,5]
[361846043,1747836636312,-500.0,0.00032876,5]
[361846044,1747836636324,-500.0,0.00032876,5]
[361846045,1747836636337,-500.0,0.00032876,5]
[361846046,1747836636350,-504.77448776,0.00032876,5]
[361846047,1747836636363,-1166.66,0.00032876,5]
[361846048,1747836636379,-420.0,0.00032876,5]
[361846049,1747836636392,-420.0,0.00032876,5]
[361846050,1747836636405,-420.0,0.00032876,5]
[361846051,1747836636419,-420.0,0.00032876,5]
[361846052,1747836636433,-420.0,0.00032876,5]
[361846053,1747836636447,-420.0,0.00032876,5]
[361846054,1747836636473,-420.0,0.00032876,5]
[361846055,1747836636494,-2470.03,0.00032876,5]
[361846056,1747836636510,-420.0,0.00032876,5]
[361846057,1747836636525,-451.76179836,0.00032876,5]
[361846058,1747836636541,-1606.3,0.00032876,5]
[361846059,1747836636557,-486.83,0.00032876,5]
[361846060,1747836636571,-778.66,0.00032876,5]
[361846061,1747836636586,-420.0,0.00032876,5]
[361846062,1747836636601,-571.82,0.00032876,5]
[361846063,1747836636616,-420.0,0.00032876,5]
[361846064,1747836636638,-576.85,0.00032876,5]
[361846065,1747836636652,-420.0,0.00032876,5]
[361846066,1747836636667,-420.0,0.00032876,5]
[361846067,1747836636683,-633.72,0.00032876,5]
[361846068,1747836636703,-1474.84,0.00032876,5]
[361846069,1747836636718,-420.0,0.00032876,5]
[361846070,1747836636732,-152.84996,0.00032876,7]
[361846071,1747836636745,-420.0,0.00032876,5]
[361846072,1747836636759,-5124.57,0.00032876,5]
[361846073,1747836636774,-420.0,0.00032876,5]
[361846074,1747836636788,-420.0,0.00032876,5]
[361846075,1747836636801,-154.426419,0.00032876,7]
[361846076,1747836636813,-420.0,0.00032876,5]
[361846077,1747836636826,-420.0,0.00032876,5]
[361846078,1747836636839,-884.03,0.00032876,5]
[361846079,1747836636852,-420.0,0.00032876,5]
[361846080,1747836636866,-733.01,0.00032876,5]
[361846081,1747836636884,-2940.92,0.00032876,5]
[361846082,1747836636908,-528.89173356,0.00032876,5]
[361846083,1747836636923,-561.69,0.00032876,5]
[361846084,1747836636940,-706.43,0.00032876,5]
[361846085,1747836636955,-439.0,0.00032876,5]
[361846086,1747836636970,-420.0,0.00032876,5]
[361846087,1747836636985,-420.0,0.00032876,5]
[361846088,1747836637001,-437.29,0.00032876,5]
[361846089,1747836637016,-151.0,0.00032876,7]
[361846090,1747836637029,-2363.93,0.00032876,5]
[361846091,1747836637043,-151.0,0.00032876,7]
[361846092,1747836637058,-151.0,0.00032876,7]
[361846093,1747836637073,-151.0,0.00032876,7]
[361846094,1747836637086,-151.0,0.00032876,7]
[361846095,1747836637100,-151.0,0.00032876,7]
[361846096,1747836637496,-509.58156655,0.00032876,5]
[361846097,1747836637538,-420.0,0.00032876,5]
[361846098,1747836637559,-420.0,0.00032876,5]
[361846099,1747836637570,-269.984783,0.00032876,7]
[361846100,1747836637580,-269.984783,0.00032876,7]
[361846101,1747836637590,-269.984783,0.00032876,7]
[361846102,1747836637599,-395.78842,0.00032876,5]
[361846103,1747836637609,-809.9,0.00032876,5]
[361846104,1747836637625,-420.0,0.00032876,5]
[361846105,1747836637634,-151.0,0.00032876,7]
[361846106,1747836637645,-420.0,0.00032876,5]
[361846107,1747836637655,-1395.76,0.00032876,5]
[361846108,1747836637665,-511.74954858,0.00032876,5]
[361846109,1747836637675,-1141.93,0.00032876,5]
[361846110,1747836637687,-420.0,0.00032876,5]
[361846111,1747836637698,-940.45,0.00032876,5]
[361846112,1747836637707,-151.0,0.00032876,7]
[361846113,1747836637717,-420.0,0.00032876,5]
[361846115,1747836637729,-151.0,0.00032876,7]
[361846117,1747836637738,-151.0,0.00032876,7]
[361846118,1747836637748,-420.0,0.00032876,5]
[361846119,1747836637758,-420.0,0.00032876,5]
[361846120,1747836637768,-676.97,0.00032876,5]
[361846121,1747836637779,-420.0,0.00032876,5]
[361846122,1747836637790,-151.0,0.00032876,7]
[361846123,1747836637800,-151.0,0.00032876,7]
[361846124,1747836637810,-151.0,0.00032876,7]
[361846125,1747836637820,-420.0,0.00032876,5]
[361846126,1747836637830,-420.0,0.00032876,5]
[361846127,1747836637839,-151.0,0.00032876,7]
[361846128,1747836637850,-151.0,0.00032876,7]
[361846129,1747836637860,-263.193303,0.00032876,7]
[361846130,1747836637872,-1076.55,0.00032876,5]
[361846131,1747836637882,-307.09592143,0.00032876,5]
[361846132,1747836637893,-735.34,0.00032876,5]
[361846133,1747836637903,-678.92,0.00032876,5]
[361846134,1747836637913,-420.0,0.00032876,5]
[361846135,1747836637924,-420.0,0.00032876,5]
[361846136,1747836637934,-536.54,0.00032876,5]
[361846137,1747836637944,-380.0,0.00032876,5]
[361846138,1747836637955,-380.0,0.00032876,5]
[361846139,1747836637965,-468.67015071,0.00032876,5]
[361846140,1747836637974,-420.19,0.00032876,5]
[361846141,1747836637984,-420.0,0.00032876,5]
[361846142,1747836637993,-420.0,0.00032876,5]
[361846143,1747836638003,-420.0,0.00032876,5]
[361846144,1747836638013,-151.0,0.00032876,7]
[361846145,1747836638022,-151.0,0.00032876,7]
[361846146,1747836638032,-151.0,0.00032876,7]
[361846148,1747836638042,-151.0,0.00032876,7]
[361846149,1747836638051,-420.0,0.00032876,5]
[361846151,1747836638061,-1506.0,0.00032876,5]
[361846153,1747836638071,-420.0,0.00032876,5]
[361846155,1747836638080,-2536.45,0.00032876,5]
[361846157,1747836638089,-380.0,0.00032876,5]
[361846159,1747836638099,-380.0,0.00032876,5]
[361846161,1747836638109,-420.0,0.00032876,5]
[361846163,1747836638118,-479.12,0.00032876,5]
[361846165,1747836638130,-420.0,0.00032876,5]
[361846167,1747836638141,-420.0,0.00032876,5]
[361846169,1747836638150,-420.0,0.00032876,5]
[361846171,1747836638161,-420.01,0.00032876,5]
[361846173,1747836638170,-3027.12,0.00032876,5]
[361846175,1747836638180,-471.5,0.00032876,5]
[361846177,1747836638190,-607.12,0.00032876,5]
[361846179,1747836638200,-420.0,0.00032876,5]
[361846181,1747836638210,-420.0,0.00032876,5]
[361846183,1747836638220,-420.0,0.00032876,5]
[361846185,1747836638230,-420.0,0.00032876,5]
[361846187,1747836638240,-808.64,0.00032876,5]
[361846189,1747836638250,-610.75,0.00032876,5]
[361846191,1747836638260,-420.0,0.00032876,5]
[361846193,1747836638269,-1149.12,0.00032876,5]
[361846196,1747836638280,-400.0,0.00032876,5]
[361846198,1747836638293,-449.94,0.00032876,5]
[361846200,1747836638303,-151.0,0.00032876,7]
[361846202,1747836638313,-151.0,0.00032876,7]
[361846204,1747836638323,-420.0,0.00032876,5]
[361846206,1747836638332,-151.0,0.00032876,7]
[361846208,1747836638342,-420.0,0.00032876,5]
[361846210,1747836638353,-151.0,0.00032876,7]
[361846212,1747836638363,-420.0,0.00032876,5]
[361846214,1747836638376,-420.0,0.00032876,5]
[361846215,1747836638386,-151.0,0.00032876,7]
[361846217,1747836638396,-151.0,0.00032876,7]
[361846219,1747836638406,-151.0,0.00032876,7]
[361846221,1747836638416,-151.0,0.00032876,7]
[361846222,1747836638426,-420.0,0.00032876,5]
[361846224,1747836638436,-380.0,0.00032876,5]
[361846226,1747836638445,-420.0,0.00032876,5]
[361846228,1747836638456,-151.0,0.00032876,7]
[361846231,1747836638466,-400.0,0.00032876,5]
[361846232,1747836638475,-151.0,0.00032876,7]
[361846234,1747836638485,-247.190394,0.00032876,7]
[361846235,1747836638495,-151.0,0.00032876,7]
[361846236,1747836638505,-151.0,0.00032876,7]
[361846237,1747836638515,-151.0,0.00032876,7]
[361846238,1747836638525,-420.0,0.00032876,5]
[361846239,1747836638535,-151.0,0.00032876,7]
[361846240,1747836638545,-420.0,0.00032876,5]
[361846241,1747836638555,-971.03,0.00032876,5]
[361846242,1747836638565,-420.0,0.00032876,5]
[361846243,1747836638574,-420.0,0.00032876,5]
[361846244,1747836638584,-420.0,0.00032876,5]
[361846245,1747836638595,-160.814694,0.00032876,7]
[361846246,1747836638604,-420.0,0.00032876,5]
[361846247,1747836638614,-160.814694,0.00032876,7]
[361846248,1747836638626,-420.0,0.00032876,5]
[361846249,1747836638636,-160.814694,0.00032876,7]
[361846250,1747836638645,-420.0,0.00032876,5]
[361846251,1747836638655,-160.814694,0.00032876,7]
[361846252,1747836638665,-160.814694,0.00032876,7]
[361846253,1747836638675,-160.814694,0.00032876,7]
[361846254,1747836638688,-1502.38,0.00032876,5]
[361846255,1747836638698,-420.0,0.00032876,5]
[361846256,1747836638708,-690.360537,0.00032876,7]
[361846257,1747836638717,-690.360537,0.00032876,7]
[361846258,1747836638729,-690.360537,0.00032876,7]
[361846259,1747836638738,-690.360537,0.00032876,7]
[361846260,1747836638748,-151.0,0.00032876,7]
[361846261,1747836638758,-151.0,0.00032876,7]
[361846262,1747836638767,-151.0,0.00032876,7]
[361846263,1747836638778,-420.0,0.00032876,5]
[361846264,1747836638788,-690.360537,0.00032876,7]
[361846265,1747836638798,-151.0,0.00032876,7]
[361846266,1747836638808,-690.360537,0.00032876,7]
[361846267,1747836638819,-151.0,0.00032876,7]
[361846268,1747836638828,-690.360537,0.00032876,7]
[361846269,1747836638838,-690.360537,0.00032876,7]
[361846270,1747836638848,-151.0,0.00032876,7]
[361846271,1747836638858,-165.169,0.00032876,7]
[361846272,1747836638869,-151.0,0.00032876,7]
[361846273,1747836638885,-151.0,0.00032876,7]
[361846274,1747836638895,-151.0,0.00032876,7]
[361846275,1747836638906,-165.169,0.00032876,7]
[361846276,1747836638917,-500.0,0.00032876,5]
[361846277,1747836638927,-151.0,0.00032876,7]
[361846278,1747836638937,-500.0,0.00032876,5]
[361846279,1747836638947,-467.3785529,0.00032876,5]
[361846280,1747836638956,-165.169,0.00032876,7]
[361846281,1747836638966,-500.0,0.00032876,5]
[361846282,1747836638976,-253.39427995,0.00032876,5]
[361846283,1747836638986,-165.169,0.00032876,7]
[361846284,1747836638996,-165.169,0.00032876,7]
[361846285,1747836639006,-151.0,0.00032876,7]
[361846286,1747836639016,-165.169,0.00032876,7]
[361846287,1747836639026,-151.0,0.00032876,7]
[361846288,1747836639036,-165.169,0.00032876,7]
[361846289,1747836639046,-165.169,0.00032876,7]
[361846290,1747836639056,-674.62,0.00032876,5]
[361846291,1747836639067,-151.0,0.00032876,7]
[361846292,1747836639077,-151.0,0.00032876,7]
[361846293,1747836639087,-151.0,0.00032876,7]
[361846294,1747836639097,-151.0,0.00032876,7]
[361846295,1747836639107,-420.0,0.00032876,5]
[361846296,1747836639118,-420.0,0.00032876,5]
[361846297,1747836639130,-420.0,0.00032876,5]
[361846298,1747836639141,-151.0,0.00032876,7]
[361846299,1747836639151,-1018.44,0.00032876,5]
[361846300,1747836639161,-151.0,0.00032876,7]
[361846301,1747836639172,-151.0,0.00032876,7]
[361846302,1747836639182,-151.0,0.00032876,7]
[361846303,1747836639192,-1426.86,0.00032876,5]
[361846304,1747836639202,-420.0,0.00032876,5]
[361846305,1747836639212,-1157.03,0.00032876,5]
[361846306,1747836639221,-478.32,0.00032876,5]
[361846307,1747836639231,-420.0,0.00032876,5]
[361846308,1747836639241,-420.0,0.00032876,5]
[361846309,1747836639250,-1010.5,0.00032876,5]
[361846310,1747836639260,-420.0,0.00032876,5]
[361846311,1747836639270,-420.0,0.00032876,5]
[361846312,1747836639280,-420.0,0.00032876,5]
[361846313,1747836639289,-4287.64,0.00032876,5]
[361846314,1747836639299,-835.0,0.00032876,5]
[361846315,1747836639308,-400.0,0.00032876,5]
[361846316,1747836639318,-420.0,0.00032876,5]